fUSD/lending_fUSD_20240409
["ID","MTS","AMOUNT","RATE_DAILY","PERIOD"]
[321961352,1712651455394,-540.0,0.00021095,2]
[321961355,1712651455406,-500.0,0.00021095,2]
[321961357,1712651455418,-500.0,0.00021095,2]
[321961359,1712651455430,-257.75940485,0.00021095,2]
[321961362,1712651455441,-531.58,0.00021095,2]
[321961364,1712651455453,-1406.3,0.00021095,2]
[321961366,1712651455463,-500.0,0.00021095,2]
[321961368,1712651455473,-500.0,0.00021095,2]
[321961370,1712651455484,-1962.76,0.00021095,2]
[321961373,1712651455496,-500.0,0.00021095,2]
[321961375,1712651455506,-735.99,0.00021095,2]
[321961377,1712651455518,-990.88,0.00021095,2]
[321961379,1712651455529,-500.0,0.00021095,2]
[321961382,1712651455541,-517.67,0.00021095,2]
[321961384,1712651455552,-693.47,0.00021095,2]
[321961386,1712651455566,-500.0,0.00021095,2]
[321961388,1712651455577,-1029.83,0.00021095,2]
[321961390,1712651455587,-500.0,0.00021095,2]
[321961393,1712651455597,-500.0,0.00021095,2]
[321961395,1712651455608,-674.54,0.00021095,2]
[321961397,1712651455622,-1598.4,0.00021095,2]
[321961400,1712651455632,-500.0,0.00021095,2]
[321961402,1712651455644,-500.0,0.00021095,2]
[321961404,1712651455660,-500.0,0.00021095,2]
[321961406,1712651455671,-500.0,0.00021095,2]
[321961409,1712651455683,-2188.92,0.00021095,2]
[321961411,1712651455696,-500.0,0.00021095,2]
[321961413,1712651455708,-500.0,0.00021095,2]
[321961416,1712651455719,-1329.56,0.00021095,2]
[321961418,1712651455731,-500.0,0.00021095,2]
[321961420,1712651455743,-586.09330177,0.00021095,2]
[321961423,1712651455754,-500.0,0.00021095,2]
[321961425,1712651455766,-615.43,0.00021095,2]
[321961427,1712651455778,-500.0,0.00021095,2]
[321961430,1712651455790,-500.0,0.00021095,2]
[321961432,1712651455802,-500.0,0.00021095,2]
[321961434,1712651455815,-1567.68,0.00021095,2]
[321961436,1712651455825,-500.0,0.00021095,2]
[321961438,1712651455835,-2090.73,0.00021095,2]
[321961441,1712651455845,-500.0,0.00021095,2]
[321961443,1712651455855,-500.0,0.00021095,2]
[321961445,1712651455866,-500.0,0.00021095,2]
[321961447,1712651455877,-500.0,0.00021095,2]
[321961449,1712651455888,-500.0,0.00021095,2]
[321961452,1712651455899,-500.0,0.00021095,2]
[321961454,1712651455910,-837.08,0.00021095,2]
[321961456,1712651455922,-500.0,0.00021095,2]
[321961458,1712651455933,-500.0,0.00021095,2]
[321961461,1712651455945,-500.0,0.00021095,2]
[321961463,1712651455955,-253.64836717,0.00021095,2]
[321961465,1712651455965,-500.0,0.00021095,2]
[321961467,1712651455976,-1106.31,0.00021095,2]
[321961469,1712651455986,-784.6,0.00021095,2]
[321961471,1712651455997,-500.0,0.00021095,2]
[321961474,1712651456007,-500.0,0.00021095,2]
[321961476,1712651456017,-500.0,0.00021095,2]
[321961478,1712651456028,-500.0,0.00021095,2]
[321961480,1712651456038,-1005.15,0.00021095,2]
[321961482,1712651456048,-627.10805104,0.00021095,2]
[321961484,1712651456059,-500.0,0.00021095,2]
[321961486,1712651456071,-500.0,0.00021095,2]
[321961489,1712651456081,-500.0,0.00021095,2]
[321961491,1712651456092,-500.0,0.00021095,2]
[321961493,1712651456102,-500.0,0.00021095,2]
[321961495,1712651456113,-1115.39,0.00021095,2]
[321961497,1712651456124,-500.0,0.00021095,2]
[321961499,1712651456134,-521.82,0.00021095,2]
[321961502,1712651456145,-500.0,0.00021095,2]
[321961504,1712651456156,-500.0,0.00021095,2]
[321961506,1712651456167,-500.0,0.00021095,2]
[321961507,1712651456180,-1487.44,0.00021095,2]
[321961508,1712651456191,-513.77,0.00021095,2]
[321961509,1712651456201,-1372.53,0.00021095,2]
[321961510,1712651456211,-639.12,0.00021095,2]
[321961511,1712651456222,-500.0,0.00021095,2]
[321961512,1712651456233,-500.0,0.00021095,2]
[321961514,1712651456243,-500.0,0.00021095,2]
[321961516,1712651456256,-500.0,0.00021095,2]
[321961518,1712651456267,-500.0,0.00021095,2]
[321961520,1712651456278,-500.0,0.00021095,2]
[321961522,1712651456288,-500.0,0.00021095,2]
[321961525,1712651456299,-1790.07,0.00021095,2]
[321961527,1712651456310,-500.0,0.00021095,2]
[321961529,1712651456320,-500.0,0.00021095,2]
[321961531,1712651456331,-736.57,0.00021095,2]
[321961533,1712651456341,-513.67,0.00021095,2]
[321961535,1712651456352,-500.0,0.00021095,2]
[321961537,1712651456362,-500.0,0.00021095,2]
[321961540,1712651456373,-500.0,0.00021095,2]
[321961542,1712651456383,-934.0,0.00021095,2]
[321961544,1712651456393,-551.07,0.00021095,2]
[321961546,1712651456404,-500.0,0.00021095,2]
[321961548,1712651456414,-672.5,0.00021095,2]
[321961550,1712651456425,-1120.19,0.00021095,2]
[321961553,1712651456436,-500.0,0.00021095,2]
[321961555,1712651456447,-911.67,0.00021095,2]
[321961557,1712651456457,-806.53,0.00021095,2]
[321961559,1712651456467,-500.0,0.00021095,2]
[321961561,1712651456478,-500.0,0.00021095,2]
[321961563,1712651456488,-500.0,0.00021095,2]
[321961565,1712651456498,-500.0,0.00021095,2]
[321961567,1712651456509,-500.0,0.00021095,2]
[321961570,1712651456520,-500.0,0.00021095,2]
[321961572,1712651456530,-500.0,0.00021095,2]
[321961574,1712651456541,-500.0,0.00021095,2]
[321961576,1712651456552,-245.12508267,0.00021095,2]
[321961578,1712651456563,-952.05,0.00021095,2]
[321961580,1712651456574,-505.62608822,0.00021095,2]
[321961583,1712651456584,-1547.53,0.00021095,2]
[321961585,1712651456601,-1433.92,0.00021095,2]
[321961588,1712651456612,-635.02772769,0.00021095,2]
[321961590,1712651456622,-751.77,0.00021095,2]
[321961592,1712651456633,-500.0,0.00021095,2]
[321961594,1712651456644,-500.0,0.00021095,2]
[321961596,1712651456654,-500.0,0.00021095,2]
[321961599,1712651456664,-500.0,0.00021095,2]
[321961601,1712651456675,-1105.43,0.00021095,2]
[321961603,1712651456686,-839.58,0.00021095,2]
[321961605,1712651456697,-884.02,0.00021095,2]
[321961607,1712651456708,-1643.37,0.00021095,2]
[321961609,1712651456719,-877.23,0.00021095,2]
[321961612,1712651456729,-500.0,0.00021095,2]
[321961614,1712651456743,-500.0,0.00021095,2]
[321961616,1712651456754,-570.05,0.00021095,2]
[321961618,1712651456764,-500.0,0.00021095,2]
[321961620,1712651456775,-626.1,0.00021095,2]
[321961622,1712651456786,-1192.79,0.00021095,2]
[321961625,1712651456796,-500.0,0.00021095,2]
[321961627,1712651456807,-500.0,0.00021095,2]
[321961629,1712651456817,-959.5,0.00021095,2]
[321961631,1712651456828,-500.0,0.00021095,2]
[321961633,1712651456839,-500.0,0.00021095,2]
[321961635,1712651456850,-510.3,0.00021095,2]
[321961638,1712651456860,-1124.51,0.00021095,2]
[321961640,1712651456871,-551.84,0.00021095,2]
[321961642,1712651456881,-1839.81,0.00021095,2]
[321961644,1712651456891,-500.0,0.00021095,2]
[321961646,1712651456902,-500.0,0.00021095,2]
[321961648,1712651456912,-913.4,0.00021095,2]
[321961650,1712651456923,-449.15684595,0.00021095,2]
[321961652,1712651456933,-1096.29,0.00021095,2]
[321961653,1712651456943,-835.61,0.00021095,2]
[321961655,1712651456953,-631.44,0.00021095,2]
[321961657,1712651456963,-1181.91,0.00021095,2]
[321961658,1712651456973,-500.0,0.00021095,2]
[321961660,1712651456984,-500.0,0.00021095,2]
[321961661,1712651456994,-1503.96,0.00021095,2]
[321961663,1712651457004,-1115.97,0.00021095,2]
[321961665,1712651457014,-740.0,0.00021095,2]
[321961666,1712651457024,-500.0,0.00021095,2]
[321961668,1712651457034,-602.24,0.00021095,2]
[321961670,1712651457044,-500.0,0.00021095,2]
[321961672,1712651457054,-171.68046617,0.00021095,2]
[321961673,1712651457065,-1550.01,0.00021095,2]
[321961675,1712651457076,-500.0,0.00021095,2]
[321961677,1712651457086,-500.0,0.00021095,2]
[321961678,1712651457097,-500.0,0.00021095,2]
[321961680,1712651457107,-670.03,0.00021095,2]
[321961682,1712651457117,-500.0,0.00021095,2]
[321961684,1712651457128,-558.59,0.00021095,2]
[321961685,1712651457138,-545.94,0.00021095,2]
[321961687,1712651457149,-500.0,0.00021095,2]
[321961688,1712651457160,-666.81,0.00021095,2]
[321961690,1712651457171,-500.0,0.00021095,2]
[321961692,1712651457181,-1861.27,0.00021095,2]
[321961694,1712651457193,-803.56,0.00021095,2]
[321961696,1712651457203,-500.0,0.00021095,2]
[321961697,1712651457215,-1556.04,0.00021095,2]
[321961699,1712651457226,-500.0,0.00021095,2]
[321961701,1712651457237,-1180.78,0.00021095,2]
[321961703,1712651457249,-500.0,0.00021095,2]
[321961705,1712651457260,-500.0,0.00021095,2]
[321961707,1712651457270,-500.0,0.00021095,2]
[321961708,1712651457281,-1168.4,0.00021095,2]
[321961710,1712651457292,-618.74,0.00021095,2]
[321961712,1712651457302,-687.7,0.00021095,2]
[321961714,1712651457314,-500.0,0.00021095,2]
[321961716,1712651457324,-1055.1,0.00021095,2]
[321961718,1712651457334,-500.0,0.00021095,2]
[321961720,1712651457344,-500.0,0.00021095,2]
[321961721,1712651457354,-500.0,0.00021095,2]
[321961723,1712651457365,-500.0,0.00021095,2]
[321961725,1712651457375,-500.0,0.00021095,2]
[321961727,1712651457385,-500.0,0.00021095,2]
[321961729,1712651457396,-720.86,0.00021095,2]
[321961731,1712651457406,-1206.28,0.00021095,2]
[321961732,1712651457416,-500.0,0.00021095,2]
[321961734,1712651457427,-500.0,0.00021095,2]
[321961736,1712651457437,-500.0,0.00021095,2]
[321961738,1712651457449,-769.91,0.00021095,2]
[321961740,1712651457460,-500.0,0.00021095,2]
[321961742,1712651457470,-694.96,0.00021095,2]
[321961743,1712651457480,-500.0,0.00021095,2]
[321961745,1712651457492,-500.0,0.00021095,2]
[321961747,1712651457502,-500.0,0.00021095,2]
[321961749,1712651457513,-500.0,0.00021095,2]
[321961751,1712651457523,-500.0,0.00021095,2]
[321961753,1712651457534,-699.63,0.00021095,2]
[321961755,1712651457545,-1388.73,0.00021095,2]
[321961756,1712651457556,-500.0,0.00021095,2]
[321961758,1712651457567,-500.0,0.00021095,2]
[321961760,1712651457577,-500.0,0.00021095,2]
[321961762,1712651457588,-500.0,0.00021095,2]
[321961764,1712651457598,-2232.19,0.00021095,2]
[321961766,1712651457608,-500.0,0.00021095,2]
[321961768,1712651457618,-500.0,0.00021095,2]
[321961769,1712651457629,-1111.51,0.00021095,2]
[321961771,1712651457639,-500.0,0.00021095,2]
[321961773,1712651457650,-945.38,0.00021095,2]
[321961775,1712651457661,-857.06,0.00021095,2]
[321961777,1712651457671,-500.0,0.00021095,2]
[321961779,1712651457682,-500.0,0.00021095,2]
[321961781,1712651457693,-1359.33,0.00021095,2]
[321961782,1712651457704,-500.0,0.00021095,2]
[321961784,1712651457714,-500.0,0.00021095,2]
[321961786,1712651457724,-500.0,0.00021095,2]
[321961788,1712651457736,-1400.87,0.00021095,2]
[321961790,1712651457746,-1428.27,0.00021095,2]
[321961792,1712651457757,-500.0,0.00021095,2]
[321961794,1712651457769,-500.0,0.00021095,2]
[321961796,1712651457780,-500.0,0.00021095,2]
[321961799,1712651457791,-500.0,0.00021095,2]
[321961801,1712651457802,-500.0,0.00021095,2]
[321961803,1712651457814,-1464.53,0.00021095,2]
[321961804,1712651457825,-500.0,0.00021095,2]
[321961805,1712651457836,-849.51,0.00021095,2]
[321961806,1712651457846,-733.15,0.00021095,2]
[321961807,1712651457861,-500.0,0.00021095,2]
[321961808,1712651457872,-1860.17,0.00021095,2]
[321961809,1712651457883,-1824.27,0.00021095,2]
[321961810,1712651457894,-1509.23,0.00021095,2]
[321961811,1712651457905,-323.92055174,0.00021095,2]
[321961812,1712651457916,-1418.94,0.00021095,2]
[321961813,1712651457929,-486.71992839,0.00021095,2]
[321961814,1712651457939,-500.0,0.00021095,2]
[321961816,1712651457952,-500.0,0.00021095,2]
[321961817,1712651457962,-1337.33,0.00021095,2]
[321961818,1712651457972,-1061.23,0.00021095,2]
[321961819,1712651457983,-500.0,0.00021095,2]
[321961820,1712651457994,-1041.57,0.00021095,2]
[321961821,1712651458006,-743.14,0.00021095,2]
[321961822,1712651458017,-2502.75,0.00021095,2]
[321961823,1712651458028,-2325.56,0.00021095,2]
[321961824,1712651458038,-500.0,0.00021095,2]
[321961825,1712651458049,-3454.94,0.00021095,2]
[321961826,1712651458060,-655.03,0.00021095,2]
[321961827,1712651458071,-606.85,0.00021095,2]
[321961828,1712651458082,-500.0,0.00021095,2]
[321961829,1712651458093,-500.0,0.00021095,2]
[321961830,1712651458105,-500.0,0.00021095,2]
[321961831,1712651458116,-500.0,0.00021095,2]
[321961832,1712651458127,-890.3,0.00021095,2]
[321961833,1712651458138,-500.0,0.00021095,2]
[321961834,1712651458149,-500.0,0.00021095,2]
[321961835,1712651458160,-1849.2,0.00021095,2]
[321961836,1712651458173,-500.0,0.00021095,2]
[321961837,1712651458184,-2717.93,0.00021095,2]
[321961838,1712651458197,-500.0,0.00021095,2]
[321961839,1712651458208,-9552.43,0.00021095,2]
[321961840,1712651458219,-1339.99,0.00021095,2]
[321961841,1712651458230,-772.31,0.00021095,2]
[321961842,1712651458241,-3281.38,0.00021095,2]
[321961843,1712651458253,-629.9,0.00021095,2]
[321961844,1712651458264,-500.0,0.00021095,2]
[321961865,1712651458275,-500.0,0.00021095,2]
[321961866,1712651459017,-564.16315776,0.00021095,2]
[321961867,1712651459043,-6237.11,0.00021095,2]
[321961868,1712651459060,-500.0,0.00021095,2]
[321961869,1712651459069,-500.0,0.00021095,2]
[321961870,1712651459078,-818.27,0.00021095,2]
[321961871,1712651459087,-656.42,0.00021095,2]
[321961872,1712651459097,-568.51,0.00021095,2]
[321961873,1712651459106,-8518.8,0.00021095,2]
[321961874,1712651459115,-715.37,0.00021095,2]
[321961875,1712651459125,-1157.47,0.00021095,2]
[321961876,1712651459134,-1255.93,0.00021095,2]
[321961877,1712651459144,-500.0,0.00021095,2]
[321961878,1712651459154,-606.82,0.00021095,2]
[321961879,1712651459165,-500.0,0.00021095,2]
[321961880,1712651459180,-1419.04,0.00021095,2]
[321961881,1712651459190,-1787.56,0.00021095,2]
[321961882,1712651459201,-2594.83,0.00021095,2]
[321961883,1712651459211,-1693.25,0.00021095,2]
[321961884,1712651459220,-4451.91,0.00021095,2]
[321961885,1712651459229,-500.0,0.00021095,2]
[321961886,1712651459238,-500.0,0.00021095,2]
[321961887,1712651459248,-534.8,0.00021095,2]
[321961888,1712651459258,-2115.43,0.00021095,2]
[321961889,1712651459269,-500.0,0.00021095,2]
[321961890,1712651459280,-500.0,0.00021095,2]
[321961891,1712651459290,-736.12,0.00021095,2]
[321961892,1712651459299,-500.0,0.00021095,2]
[321961893,1712651459309,-1674.27,0.00021095,2]
[321961894,1712651459319,-500.0,0.00021095,2]
[321961895,1712651459329,-500.0,0.00021095,2]
[321961896,1712651459339,-500.0,0.00021095,2]
[321961897,1712651459348,-2915.12,0.00021095,2]
[321961898,1712651459357,-9246.91,0.00021095,2]
[321961899,1712651459367,-500.0,0.00021095,2]
[321961900,1712651459378,-656.81,0.00021095,2]
[321961901,1712651459388,-2036.08,0.00021095,2]
[321961902,1712651459398,-500.0,0.00021095,2]
[321961903,1712651459407,-571.46,0.00021095,2]
[321961904,1712651459416,-500.0,0.00021095,2]
[321961905,1712651459427,-500.0,0.00021095,2]
[321961906,1712651459438,-1769.27,0.00021095,2]
[321961907,1712651459448,-500.0,0.00021095,2]
[321961908,1712651459458,-3623.84,0.00021095,2]
[321961909,1712651459467,-2638.89,0.00021095,2]
[321961910,1712651459476,-500.0,0.00021095,2]
[321961911,1712651459486,-500.0,0.00021095,2]
[321961912,1712651459495,-1686.01,0.00021095,2]
[321961913,1712651459504,-181.45967936,0.00021095,2]
[321961914,1712651459514,-798.76,0.00021095,2]
[321961915,1712651459523,-1259.01,0.00021095,2]
[321961916,1712651459532,-6930.44,0.00021095,2]
[321961917,1712651459541,-586.85625125,0.00021095,2]
[321961918,1712651459551,-9396.56,0.00021095,2]
[321961919,1712651459562,-500.0,0.00021095,2]
[321961920,1712651459572,-1017.61,0.00021095,2]
[321961921,1712651459582,-500.0,0.00021095,2]
[321961922,1712651459592,-5092.15,0.00021095,2]
[321961923,1712651459601,-1286.85,0.00021095,2]
[321961924,1712651459610,-7207.83,0.00021095,2]
[321961925,1712651459619,-500.0,0.00021095,2]
[321961926,1712651459628,-1805.47,0.00021095,2]
[321961927,1712651459637,-500.0,0.00021095,2]
[321961928,1712651459647,-500.0,0.00021095,2]
[321961929,1712651459657,-1216.76,0.00021095,2]
[321961930,1712651459667,-500.0,0.00021095,2]
[321961931,1712651459677,-13379.58,0.00021095,2]
[321961932,1712651459686,-500.0,0.00021095,2]
[321961933,1712651459696,-500.0,0.00021095,2]
[321961934,1712651459706,-1098.25,0.00021095,2]
[321961935,1712651459715,-1554.71,0.00021095,2]
[321961936,1712651459723,-1561.37,0.00021095,2]
[321961937,1712651459732,-37364.33,0.00021095,2]
[321961938,1712651459742,-1570.92,0.00021095,2]
[321961939,1712651459751,-2859.67,0.00021095,2]
[321961940,1712651459760,-45619.68,0.00021095,2]
[321961941,1712651459769,-1162.95,0.00021095,2]
[321961942,1712651459779,-7566.48,0.00021095,2]
[321961943,1712651459788,-500.0,0.00021095,2]
[321961944,1712651459798,-500.0,0.00021095,2]
[321961945,1712651459807,-2741.33,0.00021095,2]
[321961946,1712651459816,-500.0,0.00021095,2]
[321961947,1712651459826,-582.49341225,0.00021095,2]
[321961948,1712651459835,-500.0,0.00021095,2]
[321961949,1712651459844,-5623.42,0.00021095,2]
[321961950,1712651459853,-1008.16,0.00021095,2]
[321961951,1712651459863,-1770.51,0.00021095,2]
[321961952,1712651459872,-2881.88,0.00021095,2]
[321961953,1712651459881,-18787.5,0.00021095,2]
[321961954,1712651459890,-500.0,0.00021095,2]
[321961955,1712651459899,-500.0,0.00021095,2]
[321961956,1712651459908,-500.0,0.00021095,2]
[321961957,1712651459918,-5119.14,0.00021095,2]
[321961958,1712651459927,-2405.43,0.00021095,2]
[321961959,1712651459936,-1005.09,0.00021095,2]
[321961960,1712651459947,-10816.19,0.00021095,2]
[321961961,1712651459957,-1474.67,0.00021095,2]
[321961962,1712651459967,-6352.12,0.00021095,2]
[321961963,1712651459975,-11481.1,0.00021095,2]
[321961964,1712651459985,-500.0,0.00021095,2]
[321961965,1712651459994,-500.0,0.00021095,2]
[321961966,1712651460003,-500.0,0.00021095,2]
[321961967,1712651460012,-2815.03,0.00021095,2]
[321961968,1712651460022,-2547.63,0.00021095,2]
[321961969,1712651460031,-816.82,0.00021095,2]
[321961970,1712651460040,-3921.38,0.00021095,2]
[321961971,1712651460050,-1004.57,0.00021095,2]
[321961972,1712651460059,-5678.67,0.00021095,2]
[321961973,1712651460069,-3442.47,0.00021095,2]
[321961974,1712651460079,-500.0,0.00021095,2]
[321961975,1712651460088,-469.22303899,0.00021095,2]
[321961976,1712651460098,-1557.01,0.00021095,2]
[321961977,1712651460108,-5607.22,0.00021095,2]
[321961978,1712651460117,-500.0,0.00021095,2]
[321961979,1712651460127,-500.0,0.00021095,2]
[321961980,1712651460137,-2722.81,0.00021095,2]
[321961981,1712651460146,-500.0,0.00021095,2]
[321961982,1712651460155,-500.0,0.00021095,2]
[321961983,1712651460165,-6839.97,0.00021095,2]
[321961984,1712651460176,-500.0,0.00021095,2]
[321961985,1712651460186,-500.0,0.00021095,2]
[321961986,1712651460197,-848.64,0.00021095,2]
[321961987,1712651460206,-1778.12,0.00021095,2]
[321961988,1712651460217,-500.0,0.00021095,2]
[321961989,1712651460226,-500.0,0.00021095,2]
[321961990,1712651460235,-1274.02,0.00021095,2]
[321961991,1712651460245,-1869.78,0.00021095,2]
[321961992,1712651460255,-11260.33,0.00021095,2]
[321961993,1712651460265,-2129.57,0.00021095,2]
[321961994,1712651460274,-500.0,0.00021095,2]
[321961995,1712651460283,-7032.08,0.00021095,2]
[321961996,1712651460293,-3830.13,0.00021095,2]
[321961997,1712651460303,-786.91,0.00021095,2]
[321961998,1712651460313,-3959.31,0.00021095,2]
[321961999,1712651460323,-1061.33,0.00021095,2]
[321962000,1712651460333,-3589.4,0.00021095,2]
[321962001,1712651460343,-1750.97,0.00021095,2]
[321962002,1712651460352,-3768.07,0.00021095,2]
[321962003,1712651460362,-500.0,0.00021095,2]
[321962004,1712651460371,-2475.87,0.00021095,2]
[321962005,1712651460381,-5319.42,0.00021095,2]
[321962006,1712651460391,-500.0,0.00021095,2]
[321962007,1712651460401,-6213.68,0.00021095,2]
[321962008,1712651460411,-500.0,0.00021095,2]
[321962009,1712651460421,-500.0,0.00021095,2]
[321962010,1712651460432,-500.0,0.00021095,2]
[321962011,1712651460442,-783.82,0.00021095,2]
[321962012,1712651460454,-26153.88,0.00021095,2]
[321962013,1712651460463,-1150.21,0.00021095,2]
[321962014,1712651460472,-1336.55,0.00021095,2]
[321962015,1712651460482,-500.0,0.00021095,2]
[321962016,1712651460492,-561.92,0.00021095,2]
[321962017,1712651460501,-435.48226769,0.00021095,2]
[321962018,1712651460510,-500.0,0.00021095,2]
[321962019,1712651460519,-500.0,0.00021095,2]
[321962020,1712651460528,-500.0,0.00021095,2]
[321962021,1712651460538,-4258.51,0.00021095,2]
[321962022,1712651460549,-996.41,0.00021095,2]
[321962023,1712651460559,-4385.39,0.00021095,2]
[321962024,1712651460569,-1353.45,0.00021095,2]
[321962025,1712651460579,-21173.17,0.00021095,2]
[321962026,1712651460589,-500.0,0.00021095,2]
[321962027,1712651460598,-500.0,0.00021095,2]
[321962028,1712651460608,-2197.93,0.00021095,2]
[321962029,1712651460617,-3732.05,0.00021095,2]
[321962030,1712651460626,-500.0,0.00021095,2]
[321962031,1712651460636,-500.0,0.00021095,2]
[321962032,1712651460645,-1669.23,0.00021095,2]
[321962033,1712651460654,-500.0,0.00021095,2]
[321962034,1712651460664,-33307.67,0.00021095,2]
[321962035,1712651460673,-3148.46,0.00021095,2]
[321962036,1712651460683,-277.40325736,0.00021095,2]
[321962037,1712651460693,-3524.72,0.00021095,2]
[321962038,1712651460705,-878.03,0.00021095,2]
[321962039,1712651460715,-19138.24,0.00021095,2]
[321962040,1712651460725,-10936.07,0.00021095,2]
[321962041,1712651460734,-500.0,0.00021095,2]
[321962042,1712651460744,-500.0,0.00021095,2]
[321962043,1712651460753,-5143.38,0.00021095,2]
[321962044,1712651460762,-690.16,0.00021095,2]
[321962045,1712651460772,-500.0,0.00021095,2]
[321962046,1712651460782,-500.0,0.00021095,2]
[321962047,1712651460791,-5059.28,0.00021095,2]
[321962048,1712651460800,-500.0,0.00021095,2]
[321962049,1712651460810,-2008.75,0.00021095,2]
[321962050,1712651460819,-500.0,0.00021095,2]
[321962051,1712651460828,-1966.04,0.00021095,2]
[321962052,1712651460838,-2925.08,0.00021095,2]
[321962053,1712651460847,-933.27,0.00021095,2]
[321962054,1712651460856,-771.47,0.00021095,2]
[321962055,1712651460866,-9619.61,0.00021095,2]
[321962056,1712651460875,-776.27,0.00021095,2]
[321962057,1712651460884,-500.0,0.00021095,2]
[321962058,1712651460894,-2870.29,0.00021095,2]
[321962059,1712651460903,-757.05,0.00021095,2]
[321962060,1712651460913,-2930.09,0.00021095,2]
[321962061,1712651460922,-500.0,0.00021095,2]
[321962062,1712651460931,-2267.95,0.00021095,2]
[321962063,1712651460941,-2220.18,0.00021095,2]
[321962064,1712651460954,-4154.04,0.00021095,2]
[321962065,1712651460964,-500.0,0.00021095,2]
[321962066,1712651460973,-1028.49,0.00021095,2]
[321962067,1712651460982,-1085.97,0.00021095,2]
[321962068,1712651460992,-54979.51,0.00021095,2]
[321962069,1712651461001,-500.0,0.00021095,2]
[321962070,1712651461011,-3103.11,0.00021095,2]
[321962071,1712651461020,-3236.76,0.00021095,2]
[321962072,1712651461029,-3505.07,0.00021095,2]
[321962073,1712651461038,-500.0,0.00021095,2]
[321962074,1712651461049,-500.0,0.00021095,2]
[321962075,1712651461057,-931.58,0.00021095,2]
[321962076,1712651461066,-1972.74,0.00021095,2]
[321962077,1712651461075,-734.39,0.00021095,2]
[321962078,1712651461084,-500.0,0.00021095,2]
[321962079,1712651461094,-1133.25,0.00021095,2]
[321962080,1712651461104,-1687.18,0.00021095,2]
[321962081,1712651461114,-500.0,0.00021095,2]
[321962082,1712651461123,-6568.84,0.00021095,2]
[321962083,1712651461133,-845.98,0.00021095,2]
[321962084,1712651461142,-500.0,0.00021095,2]
[321962085,1712651461152,-9491.85,0.00021095,2]
[321962086,1712651461161,-20619.43,0.00021095,2]
[321962087,1712651461172,-500.0,0.00021095,2]
[321962088,1712651461183,-16428.52,0.00021095,2]
[321962089,1712651461193,-2910.61,0.00021095,2]
[321962090,1712651461205,-1878.52,0.00021095,2]
[321962091,1712651461214,-7304.55,0.00021095,2]
[321962092,1712651461224,-2157.75,0.00021095,2]
[321962093,1712651461234,-514.57823485,0.00021095,2]
[321962094,1712651461243,-3273.92,0.00021095,2]
[321962095,1712651461253,-500.0,0.00021095,2]
[321962096,1712651461263,-500.0,0.00021095,2]
[321962097,1712651461341,-500.0,0.00021095,2]
[321962098,1712651461352,-944.9,0.00021095,2]
[321962099,1712651461361,-619.65,0.00021095,2]
[321962100,1712651461370,-4460.71,0.00021095,2]